bitfinex-derivatives/quotes_BTCF0:USTF0_20250501
["timestamp","ask_amount","ask_price","bid_price","bid_amount"]
[1746068921552,0.01177564,94968.0,94965.0,0.2105933]
[1746068921759,0.01177564,94968.0,94965.0,0.4805933]
[1746068921951,0.09238505,94966.0,94965.0,0.4805933]
[1746068922151,0.09242505,94966.0,94965.0,0.27]
[1746068922457,0.09242505,94966.0,94965.0,0.4805933]
[1746068922658,0.16592505,94966.0,94965.0,0.28071797]
[1746068922859,0.16592505,94966.0,94965.0,0.49431127]
[1746068923359,0.28792505,94966.0,94965.0,0.49431127]
[1746068923668,0.28792505,94966.0,94965.0,0.49831127]
[1746068923859,0.28792505,94966.0,94965.0,0.65838141]
[1746068924953,0.39322505,94966.0,94965.0,0.44778811]
[1746068926452,0.39322505,94966.0,94965.0,0.65838141]
[1746068926953,0.39322505,94966.0,94965.0,0.44778811]
[1746068927154,0.28792505,94966.0,94965.0,0.44778811]
[1746068927662,0.28792505,94966.0,94965.0,0.28771797]
[1746068928864,0.39322505,94966.0,94965.0,0.277]
[1746068929559,0.47382505,94966.0,94965.0,0.277]
[1746068930262,0.68441615,94966.0,94965.0,0.277]
[1746068930451,0.47382505,94966.0,94965.0,0.4875933]
[1746068932358,0.47382505,94966.0,94965.0,0.277]
[1746068935057,0.47382505,94966.0,94965.0,0.4875933]
[1746068935256,0.36852505,94966.0,94965.0,0.4875933]
[1746068935463,0.36848505,94966.0,94965.0,0.4875933]
[1746068935654,0.36852505,94966.0,94965.0,0.277]
[1746068938259,0.36852505,94966.0,94965.0,0.4875933]
[1746068938260,0.13772505,94966.0,94965.0,0.4875933]
[1746068938461,0.13768505,94966.0,94965.0,0.5617933]
[1746068938661,0.13772505,94966.0,94965.0,0.3512]
[1746068938861,0.21262505,94966.0,94965.0,0.3512]
[1746068939068,0.21262505,94966.0,94965.0,0.41612]
[1746068939257,0.09062505,94966.0,94965.0,0.41612]
[1746068940459,0.01572505,94966.0,94965.0,0.6267133]
[1746068940863,0.01572505,94966.0,94965.0,0.41612]
[1746068941166,0.09152505,94966.0,94965.0,0.6267133]
[1746068942271,0.09152505,94966.0,94965.0,0.41612]
[1746068942458,0.30211615,94966.0,94965.0,0.277]
[1746068942664,0.17182505,94966.0,94965.0,0.277]
[1746068943164,0.29382505,94966.0,94965.0,0.277]
[1746068944075,0.21352505,94966.0,94965.0,0.277]
[1746068944459,0.21348505,94966.0,94965.0,0.4875933]
[1746068944661,0.21352505,94966.0,94965.0,0.4875933]
[1746068944969,0.21348505,94966.0,94965.0,0.4875933]
[1746068945164,0.09152505,94966.0,94965.0,0.4875933]
[1746068945363,0.09152505,94966.0,94965.0,0.5657933]
[1746068945663,0.01572505,94966.0,94965.0,0.5657933]
[1746068951178,0.01572505,94966.0,94965.0,0.6307133]
[1746068957875,0.01568505,94966.0,94965.0,0.6307133]
[1746068958072,0.01572505,94966.0,94965.0,0.7527133]
[1746068961078,0.01572505,94966.0,94965.0,0.6307133]
[1746068962289,0.01572505,94966.0,94965.0,0.7527133]
[1746068964773,0.00953172,94967.0,94966.0,0.2105911]
[1746068964969,0.00953172,94967.0,94966.0,0.6488911]
[1746068965180,0.00953172,94967.0,94966.0,0.7708911]
[1746068965572,0.08453172,94967.0,94966.0,0.7708911]
[1746068965979,0.08453172,94967.0,94966.0,0.7768911]
[1746068968373,0.08453172,94967.0,94966.0,0.4882]
[1746068968576,0.81312062,94967.0,94966.0,0.408]
[1746068969168,0.72453172,94967.0,94966.0,0.286]
[1746068970475,0.93512062,94967.0,94966.0,0.286]
[1746068970674,0.72453172,94967.0,94966.0,0.286]
[1746068976187,0.60257172,94967.0,94966.0,0.286]
[1746068977995,0.24177172,94967.0,94966.0,0.286]
[1746068978289,0.60257172,94967.0,94966.0,0.286]
[1746068980586,0.52217172,94967.0,94966.0,0.286]
[1746068980991,0.52213172,94967.0,94966.0,0.286]
[1746068981289,0.52217172,94967.0,94966.0,0.286]
[1746068983081,0.44537172,94967.0,94966.0,0.286]
[1746068983479,0.51903172,94967.0,94966.0,0.286]
[1746068983678,0.51907172,94967.0,94966.0,0.286]
[1746068984680,0.51907172,94967.0,94966.0,0.3657]
[1746068986287,0.44537172,94967.0,94966.0,0.5762911]
[1746068986493,0.44533172,94967.0,94966.0,0.6551911]
[1746068986784,0.44537172,94967.0,94966.0,0.6551911]
[1746068987183,0.44537172,94967.0,94966.0,0.4446]
[1746068987378,0.44537172,94967.0,94966.0,0.4416]
[1746068987689,0.44537172,94967.0,94966.0,0.4446]
[1746068987991,0.44537172,94967.0,94966.0,0.4416]
[1746068988178,0.44537172,94967.0,94966.0,0.4446]
[1746068988585,0.44537172,94967.0,94966.0,0.6551911]
[1746068988786,0.37037172,94967.0,94966.0,0.6551911]
[1746068988984,0.37033172,94967.0,94966.0,0.6521911]
[1746068989184,0.37037172,94967.0,94966.0,0.7771911]
[1746068989381,0.37037172,94967.0,94966.0,0.5666]
[1746068990693,0.37037172,94967.0,94966.0,0.7771911]
[1746068991483,0.45087172,94967.0,94966.0,0.5666]
[1746068992298,0.45087172,94967.0,94966.0,0.7771911]
[1746068993791,0.45087172,94967.0,94966.0,0.7761911]
[1746068994183,0.45087172,94967.0,94966.0,0.6541911]
[1746068994990,0.37037172,94967.0,94966.0,0.6541911]
[1746068995179,0.00957172,94967.0,94966.0,0.6511911]
[1746068995383,0.00953172,94967.0,94966.0,0.6541911]
[1746068995683,0.00957172,94967.0,94966.0,0.6541911]
[1746068996188,0.00957172,94967.0,94966.0,0.7761911]
[1746068998681,0.00957172,94967.0,94966.0,0.5656]
[1746068999091,0.00957172,94967.0,94966.0,0.7761911]
[1746068999387,0.00957172,94967.0,94966.0,0.5656]
[1746068999590,0.00957172,94967.0,94966.0,0.7761911]
[1746069001085,0.00957172,94967.0,94966.0,0.5656]
[1746069001288,0.08637172,94967.0,94966.0,0.5656]
[1746069001585,0.08637172,94967.0,94966.0,0.4867]
[1746069001993,0.00957172,94967.0,94966.0,0.5635]
[1746069002294,0.00957172,94967.0,94966.0,0.4415]
[1746069002787,0.00957172,94967.0,94966.0,0.6520911]
[1746069002986,0.00957172,94967.0,94966.0,0.4415]
[1746069005178,0.00957172,94967.0,94966.0,0.6520911]
[1746069005377,0.00953172,94967.0,94966.0,0.6520911]
[1746069005579,0.00957172,94967.0,94966.0,0.6520911]
[1746069006189,0.00957172,94967.0,94966.0,0.7740911]
[1746069007388,0.00953172,94967.0,94966.0,0.7740911]
[1746069007589,0.00957172,94967.0,94966.0,0.7740911]
[1746069015990,0.00953172,94967.0,94966.0,0.7740911]
[1746069016191,0.00957172,94967.0,94966.0,0.7740911]
[1746069020107,0.08427172,94967.0,94966.0,0.7740911]
[1746069021200,0.08427172,94967.0,94966.0,0.5635]
[1746069021502,0.08427172,94967.0,94966.0,0.8387711]
[1746069021894,0.00957172,94967.0,94966.0,0.8387711]
[1746069023707,0.00957172,94967.0,94966.0,1.1995711]
[1746069023900,0.00953172,94967.0,94966.0,1.1995711]
[1746069024103,0.00957172,94967.0,94966.0,1.1995711]
[1746069027795,0.00957172,94967.0,94966.0,0.8387711]
[1746069028908,0.08887172,94967.0,94966.0,0.8387711]
[1746069029506,0.00957172,94967.0,94966.0,0.8387711]
[1746069029906,0.00953172,94967.0,94966.0,0.8387711]
[1746069030710,0.00957172,94967.0,94966.0,0.8387711]
[1746069031209,0.01018737,94971.0,94966.0,0.8387711]
[1746069031210,0.01145285,94975.0,94971.0,0.052645]
[1746069031407,0.01145285,94975.0,94974.0,0.5713734]
[1746069031606,0.01145285,94975.0,94974.0,0.8413734]
[1746069032104,0.01149285,94975.0,94974.0,0.9633734]
[1746069032704,0.01149285,94975.0,94974.0,0.6025734]
[1746069033506,0.01149285,94975.0,94974.0,1.3206654]
[1746069033902,0.01145285,94975.0,94974.0,1.3206654]
[1746069034202,0.01149285,94975.0,94974.0,1.3206654]
[1746069034815,0.01149285,94975.0,94974.0,1.3216654]
[1746069035798,0.01149285,94975.0,94974.0,1.0716654]
[1746069037010,0.01149285,94975.0,94974.0,1.6321734]
[1746069037207,0.01149285,94975.0,94974.0,1.7374654]
[1746069037407,0.01145285,94975.0,94974.0,1.7374654]
[1746069038109,0.01149285,94975.0,94974.0,1.7374654]
[1746069038305,0.01149285,94975.0,94974.0,1.7394654]
[1746069039012,0.01149285,94975.0,94974.0,1.4874654]
[1746069039205,0.01149285,94975.0,94974.0,1.5541454]
[1746069039601,0.01149285,94975.0,94974.0,1.76868708]
[1746069041211,0.01149285,94975.0,94974.0,1.35288708]
[1746069041400,0.09159285,94975.0,94974.0,1.35288708]
[1746069041807,0.01149285,94975.0,94974.0,1.35288708]
[1746069043207,0.01149285,94975.0,94974.0,1.1383454]
[1746069046203,0.01149285,94975.0,94974.0,1.0329734]
[1746069046408,0.52899285,94975.0,94974.0,0.6721734]
[1746069047309,0.52899285,94975.0,94974.0,0.5501734]
[1746069048118,0.52899285,94975.0,94974.0,0.71011467]
[1746069049906,0.52899285,94975.0,94974.0,0.64551467]
[1746069050113,0.52899285,94975.0,94974.0,0.71011467]
[1746069052423,0.52899285,94975.0,94974.0,0.5501734]
[1746069053221,0.01149285,94975.0,94974.0,0.5501734]
[1746069053620,0.08179285,94975.0,94974.0,0.5501734]
[1746069053824,0.14949285,94975.0,94974.0,0.6883734]
[1746069054320,0.14949285,94975.0,94974.0,0.5501734]
[1746069055925,0.14949285,94975.0,94974.0,0.6189734]
[1746069058013,0.14949285,94975.0,94974.0,0.6888734]
[1746069059229,0.14949285,94975.0,94974.0,0.6189734]
[1746069062535,0.14949285,94975.0,94974.0,0.5501734]
[1746069066237,0.27149285,94975.0,94974.0,0.5501734]
[1746069066735,0.27149285,94975.0,94974.0,0.6889734]
[1746069066934,0.27145285,94975.0,94974.0,0.6889734]
[1746069067125,0.14949285,94975.0,94974.0,0.6889734]
[1746069068628,0.01149285,94975.0,94974.0,1.0497734]
[1746069068831,0.01145285,94975.0,94974.0,1.1181734]
[1746069069335,0.01145285,94975.0,94974.0,1.2401734]
[1746069069641,0.01149285,94975.0,94974.0,1.2401734]
[1746069070838,0.01145285,94975.0,94974.0,1.2401734]
[1746069071139,0.01149285,94975.0,94974.0,1.2401734]
[1746069073435,0.01145285,94975.0,94974.0,1.3454654]
[1746069073630,0.01149285,94975.0,94974.0,1.3454654]
[1746069076123,0.01149285,94975.0,94974.0,1.7612654]
[1746069076323,0.01145285,94975.0,94974.0,1.7612654]
[1746069076529,0.01149285,94975.0,94974.0,1.7612654]
[1746069077233,0.01149285,94975.0,94974.0,1.7632654]
[1746069078829,0.01149285,94975.0,94974.0,1.7622654]
[1746069079428,0.01149285,94975.0,94974.0,1.7612654]
[1746069080437,0.01509859,94977.0,94974.0,1.7612654]
[1746069080640,0.00404684,94988.0,94982.0,0.2105556]
[1746069080833,0.00404684,94988.0,94982.0,0.8513556]
[1746069081136,0.01385121,94983.0,94982.0,1.0786396]
[1746069081437,1e-07,94984.0,94983.0,0.2105534]
[1746069081639,0.00355994,94985.0,94984.0,0.2105512]
[1746069081827,0.00355994,94985.0,94984.0,0.4605512]
[1746069082027,0.00355994,94985.0,94984.0,0.6003512]
[1746069082342,0.00355994,94985.0,94984.0,0.7223512]
[1746069082729,0.00355994,94985.0,94984.0,0.7233512]
[1746069083131,0.00355994,94985.0,94984.0,0.7243512]
[1746069084734,0.00355994,94985.0,94984.0,0.7889112]
[1746069085043,0.14395994,94985.0,94984.0,0.7889112]
[1746069085235,0.14395994,94985.0,94984.0,0.6669112]
[1746069085636,4e-08,94985.0,94984.0,0.6669112]
[1746069086039,4.004e-05,94985.0,94984.0,0.6669112]
[1746069086229,4.004e-05,94985.0,94984.0,0.7889112]
[1746069086945,9e-08,94992.0,94984.0,1.09944]
[1746069087141,0.01163417,94993.0,94992.0,0.2105335]
[1746069087337,0.01163417,94993.0,94992.0,0.4605335]
[1746069087539,0.01163417,94993.0,94992.0,0.6735335]
[1746069087734,0.01167417,94993.0,94992.0,0.6735335]
[1746069088138,0.01167417,94993.0,94992.0,0.7955335]
[1746069089248,4e-08,94995.0,94994.0,0.210529]
[1746069089439,4e-08,94995.0,94994.0,0.47843199]
[1746069090236,4.004e-05,94995.0,94994.0,0.60043199]
[1746069091749,0.01354578,95000.0,94999.0,0.210518]
[1746069091945,0.01354578,95000.0,94999.0,0.585078]
[1746069092146,0.01358578,95000.0,94999.0,0.812342]
[1746069092535,0.01358578,95000.0,94999.0,0.951742]
[1746069096245,0.01358578,95000.0,94999.0,0.846438]
[1746069096446,0.15088578,95000.0,94999.0,0.796438]
[1746069096646,0.15088578,95000.0,94999.0,0.657038]
[1746069097048,0.08178578,95000.0,94999.0,0.657038]
[1746069097250,0.08178578,95000.0,94999.0,0.798638]
[1746069097445,0.08174578,95000.0,94999.0,0.798638]
[1746069097648,0.08178578,95000.0,94999.0,0.798638]
[1746069098246,0.08178578,95000.0,94999.0,0.676638]
[1746069101551,0.01358578,95000.0,94999.0,0.781902]
[1746069101939,0.08708578,95000.0,94999.0,0.781902]
[1746069104856,0.08704578,95000.0,94999.0,0.831902]
[1746069105049,0.08708578,95000.0,94999.0,0.831902]
[1746069105244,0.08708578,95000.0,94999.0,0.953902]
[1746069105739,0.08708578,95000.0,94999.0,1.314702]
[1746069107939,0.15578578,95000.0,94999.0,1.314702]
[1746069108149,0.15578578,95000.0,94999.0,0.945838]
[1746069108346,0.22438578,95000.0,94999.0,0.945838]
[1746069112452,0.22438578,95000.0,94999.0,0.585038]
[1746069112657,0.15578578,95000.0,94999.0,0.585038]
[1746069116151,0.40578578,95000.0,94999.0,0.520518]
[1746069116346,0.40578578,95000.0,94999.0,0.534998]
[1746069117257,0.52778578,95000.0,94999.0,0.534998]
[1746069117753,0.27778578,95000.0,94999.0,0.534998]
[1746069118758,0.63858578,95000.0,94999.0,0.534998]
[1746069121457,0.63854578,95000.0,94999.0,0.599498]
[1746069121666,0.63858578,95000.0,94999.0,0.599498]
[1746069121965,0.63858578,95000.0,94999.0,0.534998]
[1746069122859,0.20904578,95000.0,94999.0,0.534998]
[1746069123059,0.20908578,95000.0,94999.0,0.669498]
[1746069123246,0.15248578,95000.0,94999.0,0.669498]
[1746069124460,0.15248578,95000.0,94999.0,0.599498]
[1746069125755,0.01358578,95000.0,94999.0,0.599498]
[1746069125961,0.01354578,95000.0,94999.0,0.663398]
[1746069126158,0.01358578,95000.0,94999.0,0.663398]
[1746069126461,0.08258578,95000.0,94999.0,0.663398]
[1746069130454,0.00040723,95003.0,95002.0,0.2105113]
[1746069130659,0.06988638,95009.0,95008.0,0.210498]
[1746069130952,0.06983237,95009.0,95008.0,0.460498]
[1746069131153,0.06987237,95009.0,95008.0,0.460498]
[1746069131566,0.06987237,95009.0,95008.0,0.594598]
[1746069131757,0.13627237,95009.0,95008.0,0.594598]
[1746069132865,0.33616541,95010.0,95009.0,0.2104958]
[1746069133062,0.33616541,95010.0,95009.0,0.5941958]
[1746069133363,0.39956541,95010.0,95009.0,0.5941958]
[1746069133558,0.46596541,95010.0,95009.0,0.5941958]
[1746069136168,5.401e-05,95020.0,95010.0,0.2104936]
[1746069136364,0.0683,95015.0,95010.0,0.5773936]
[1746069136763,0.0632,95014.0,95010.0,0.5773936]
[1746069137161,0.0683,95013.0,95010.0,0.5773936]
[1746069137560,0.0632,95012.0,95010.0,0.5773936]
[1746069137770,5.401e-05,95020.0,95010.0,0.6418336]
[1746069137971,0.0683,95012.0,95010.0,0.6418336]
[1746069139064,0.0683,95012.0,95010.0,0.79214]
[1746069139358,0.0683,95012.0,95010.0,1.0026336]
[1746069140966,0.07002141,95011.0,95010.0,1.0026336]
[1746069144576,0.0683,95012.0,95010.0,1.0026336]
[1746069144577,0.3608,95028.0,95023.0,0.0526162]
[1746069144772,0.3608,95028.0,95024.0,0.1322]
[1746069144773,0.0668,95027.0,95024.0,0.1322]
[1746069145073,0.12204,95026.0,95024.0,0.4992551]
[1746069145273,0.12204,95026.0,95024.0,0.50968068]
[1746069145465,0.0668,95025.0,95024.0,0.50968068]
[1746069145671,0.0668,95025.0,95024.0,0.72014328]
[1746069145874,0.1305,95025.0,95024.0,0.72014328]
[1746069146164,0.322,95025.0,95024.0,0.65144328]
[1746069147572,0.122,95025.0,95024.0,0.65144328]
[1746069147872,0.1857,95025.0,95024.0,0.71654328]
[1746069148373,0.251,95025.0,95024.0,0.71654328]
[1746069148568,0.251,95025.0,95024.0,0.65144328]
[1746069149172,0.129,95025.0,95024.0,0.65144328]
[1746069149668,0.12904,95025.0,95024.0,0.65144328]
[1746069150076,0.06374,95025.0,95024.0,0.65144328]
[1746069150278,0.06374,95025.0,95024.0,0.71854328]
[1746069151381,0.0637,95025.0,95024.0,0.71854328]
[1746069151684,4e-05,95025.0,95024.0,0.71854328]
[1746069156770,4e-05,95025.0,95024.0,0.65144328]
[1746069158980,4e-05,95025.0,95024.0,0.26042558]
[1746069159280,0.12204,95025.0,95024.0,0.47088818]
[1746069160275,0.12204,95025.0,95024.0,0.53532818]
[1746069162277,0.12204,95025.0,95024.0,0.47088818]
[1746069165277,0.227276,95025.0,95024.0,0.26042558]
[1746069166680,0.227276,95025.0,95024.0,0.47088818]
[1746069168277,0.12204,95025.0,95024.0,0.47088818]
[1746069171594,0.12204,95025.0,95024.0,0.26042558]
[1746069174090,0.12204,95025.0,95012.0,0.1602247]
[1746069174091,0.838076,95025.0,95012.0,0.1602247]
[1746069174395,0.5712869,95013.0,95012.0,0.06]
[1746069174784,0.87873491,95013.0,95012.0,0.06]
[1746069175185,1.00073491,95013.0,95012.0,0.062]
[1746069176290,1.00073491,95013.0,95012.0,0.064]
[1746069176492,1.25073491,95013.0,95012.0,0.064]
[1746069176790,0.2105091,95003.0,95002.0,0.21342394]
[1746069177088,0.2105091,95003.0,94992.0,0.21211217]
[1746069177089,0.2105313,94993.0,94992.0,0.00157907]
[1746069177290,0.5713313,94993.0,94992.0,0.24157907]
[1746069177496,0.6766033,94993.0,94992.0,0.24157907]
[1746069177892,0.8131033,94993.0,94992.0,0.24157907]
[1746069178087,0.9351033,94993.0,94992.0,0.24157907]
[1746069178488,0.9351033,94993.0,94992.0,0.24357907]
[1746069179494,0.9351033,94993.0,94992.0,0.24457907]
[1746069179696,1.3538033,94993.0,94992.0,0.24457907]
[1746069180397,1.36185649,94993.0,94992.0,0.24457907]
[1746069180783,1.36185649,94993.0,94992.0,0.24257907]
[1746069180990,0.2105468,94986.0,94985.0,0.00105279]
[1746069181190,0.2105512,94984.0,94983.0,0.21380668]
[1746069181390,0.2105512,94984.0,94983.0,0.32380668]
[1746069181586,0.3158312,94984.0,94983.0,0.32380668]
[1746069181789,0.4509312,94984.0,94983.0,0.32380668]
[1746069182093,0.2105734,94974.0,94973.0,0.26688839]
[1746069182294,0.9900734,94974.0,94973.0,0.54688839]
[1746069182496,1.09536541,94974.0,94973.0,0.54688839]
[1746069183092,0.2106066,94959.0,94958.0,0.33]
[1746069183292,0.0526571,94950.0,94945.0,0.0644]
[1746069183591,0.5714355,94946.0,94945.0,0.29]
[1746069183992,0.6767595,94946.0,94945.0,0.29]
[1746069184300,0.7987595,94946.0,94945.0,0.29]
[1746069184597,0.7987595,94946.0,94945.0,0.294]
[1746069185508,0.7987595,94946.0,94945.0,0.3]
[1746069186107,0.7987595,94946.0,94945.0,0.294]
[1746069186309,0.7987595,94946.0,94945.0,0.298]
[1746069187004,1.2174595,94946.0,94945.0,0.298]
[1746069190019,0.0526621,94941.0,94931.0,0.0658]
[1746069190219,0.3608,94937.0,94931.0,0.1458]
[1746069190513,0.2106627,94934.0,94931.0,0.1458]
[1746069191007,0.2806644,94933.0,94931.0,0.1458]
[1746069191213,0.07,94933.0,94931.0,0.1538]
[1746069191913,0.07,94933.0,94931.0,0.1598]
[1746069192216,0.2106665,94932.0,94931.0,0.1598]
[1746069192414,0.2106665,94932.0,94931.0,0.1538]
[1746069192614,0.2106665,94932.0,94931.0,0.1598]
[1746069193303,0.2106665,94932.0,94931.0,0.2263]
[1746069193509,0.2106665,94932.0,94931.0,0.2173]
[1746069193707,0.2106665,94932.0,94931.0,0.2223]
[1746069193913,0.2821665,94932.0,94931.0,0.2223]
[1746069195120,0.4041665,94932.0,94931.0,0.2223]
[1746069195707,0.3326665,94932.0,94931.0,0.2223]
[1746069197316,0.4002665,94932.0,94931.0,0.2223]
[1746069198207,0.4002665,94932.0,94931.0,0.09]
[1746069198409,0.4002665,94932.0,94926.0,0.0709]
[1746069198410,0.2106776,94927.0,94926.0,0.0709]
[1746069198611,0.6293776,94927.0,94926.0,0.3409]
[1746069199008,0.6933776,94927.0,94926.0,0.3409]
[1746069199211,0.8153776,94927.0,94926.0,0.4086]
[1746069199718,0.8153776,94927.0,94926.0,0.4146]
[1746069200713,0.8153776,94927.0,94926.0,0.3529]
[1746069202217,0.8153776,94927.0,94926.0,0.1952209]
[1746069202514,0.8827776,94927.0,94926.0,0.1952209]
[1746069203518,0.8827776,94927.0,94925.0,0.00105346]
[1746069203519,0.2106798,94926.0,94925.0,0.00105346]
[1746069203717,0.2106865,94923.0,94922.0,0.00158024]
[1746069204016,0.5714865,94923.0,94922.0,0.27158024]
[1746069204216,0.6934865,94923.0,94922.0,0.27158024]
[1746069204716,0.6884865,94923.0,94922.0,0.27158024]
[1746069205215,0.6884865,94923.0,94922.0,0.27458024]
[1746069206316,0.6884865,94923.0,94922.0,0.27658024]
[1746069207608,1.1071865,94923.0,94922.0,0.27658024]
[1746069208712,1.1071865,94923.0,94922.0,0.27558024]
[1746069209222,1.1071865,94923.0,94922.0,0.27458024]
[1746069211108,1.1071865,94923.0,94912.0,0.00158035]
[1746069211109,0.2107087,94913.0,94912.0,0.00158035]
[1746069211308,0.2107087,94913.0,94898.0,0.06444]
[1746069211309,0.210722,94907.0,94906.0,0.0652]
[1746069211523,0.629422,94907.0,94906.0,0.3252]
[1746069212320,0.622422,94907.0,94906.0,0.3252]
[1746069213022,0.622422,94907.0,94906.0,0.33980281]
[1746069213221,0.622422,94907.0,94906.0,0.34280281]
[1746069213916,0.622422,94907.0,94906.0,0.34180281]
[1746069214426,0.688222,94907.0,94906.0,0.266]
[1746069214623,0.688222,94907.0,94906.0,0.263]
[1746069215329,0.810222,94907.0,94906.0,0.263]
[1746069215627,0.813222,94907.0,94906.0,0.26]
[1746069215827,0.815222,94907.0,94906.0,0.26]
[1746069216827,0.92059,94907.0,94906.0,0.26]
[1746069219027,0.92059,94907.0,94902.0,0.1378]
[1746069219028,0.2107309,94903.0,94902.0,0.0699]
[1746069219324,0.5715309,94903.0,94902.0,0.09]
[1746069219630,0.2107464,94896.0,94895.0,0.00105379]
[1746069219827,0.2107464,94896.0,94895.0,0.25105379]
[1746069220421,0.3380464,94896.0,94895.0,0.25105379]
[1746069222127,0.7567464,94896.0,94895.0,0.25105379]
[1746069222320,0.7577464,94896.0,94895.0,0.25105379]
[1746069222924,0.7597464,94896.0,94895.0,0.25105379]
[1746069223123,0.7597464,94896.0,94887.0,0.00158082]
[1746069223124,0.0526915,94888.0,94880.0,0.24]
[1746069223425,0.0526888,94892.0,94882.0,0.0625]
[1746069223426,0.2107753,94883.0,94882.0,0.0625]
[1746069223729,1.0377673,94883.0,94882.0,1e-08]
[1746069223917,1.1676673,94883.0,94882.0,1e-08]
[1746069224116,1.2896673,94883.0,94882.0,1e-08]
[1746069224723,0.2107975,94873.0,94872.0,0.1298]
[1746069224930,0.5715975,94873.0,94872.0,0.2973]
[1746069225227,0.5695975,94873.0,94872.0,0.23]
[1746069225632,0.5695975,94873.0,94808.0,0.26253464]
[1746069225633,0.05852329,94856.0,94808.0,0.26253464]
[1746069225930,0.05852329,94856.0,94800.0,0.1]
[1746069225931,0.2079643,94798.0,94776.0,0.0654]
[1746069226118,0.5687643,94798.0,94797.0,0.60702143]
[1746069226318,0.5687643,94798.0,94797.0,0.66306982]
[1746069226632,0.5687643,94798.0,94797.0,0.87390982]
[1746069226633,0.57675551,94798.0,94797.0,0.87390982]
[1746069227028,0.57675551,94798.0,94797.0,0.66306982]
[1746069227334,0.69875551,94798.0,94797.0,0.66306982]
[1746069227529,0.69775551,94798.0,94797.0,0.66306982]
[1746069228219,0.69875551,94798.0,94797.0,0.66306982]
[1746069229030,0.69975551,94798.0,94797.0,0.66406982]
[1746069229729,0.69975551,94798.0,94797.0,0.44788839]
[1746069230335,0.57775551,94798.0,94797.0,0.44788839]
[1746069230527,0.57775551,94798.0,94797.0,0.23704839]
[1746069230928,0.5697643,94798.0,94797.0,0.23704839]
[1746069231130,0.6917643,94798.0,94797.0,0.23704839]
[1746069231734,0.6917643,94798.0,94797.0,0.44788839]
[1746069232227,0.5697643,94798.0,94797.0,0.44788839]
[1746069237227,0.5687643,94798.0,94797.0,0.44688839]
[1746069237428,0.5727643,94798.0,94797.0,0.65885489]
[1746069237834,0.5727643,94798.0,94797.0,0.44788839]
[1746069238025,0.3678,94798.0,94797.0,0.65985489]
[1746069238534,0.5787643,94798.0,94797.0,0.65985489]
[1746069239125,0.5787643,94798.0,94797.0,0.78185489]
[1746069239322,0.5787643,94798.0,94797.0,0.57088839]
[1746069239629,0.3678,94798.0,94797.0,0.78185489]
[1746069241238,0.3678,94798.0,94797.0,0.65985489]
[1746069241533,0.5777643,94798.0,94797.0,0.44788839]
[1746069241740,0.5837643,94798.0,94797.0,0.44888839]
[1746069241942,0.5837643,94798.0,94797.0,0.68358839]
[1746069242237,0.3728,94798.0,94797.0,0.89455489]
[1746069244341,0.3688,94798.0,94797.0,0.89255489]
[1746069244731,0.3648,94798.0,94797.0,0.89255489]
[1746069244932,0.3688,94798.0,94797.0,0.89255489]
[1746069245132,0.3688,94798.0,94797.0,1.01455489]
[1746069246435,0.3698,94798.0,94797.0,1.01455489]
[1746069247035,0.3658,94798.0,94797.0,1.01455489]
[1746069247336,0.3698,94798.0,94797.0,1.01455489]
[1746069247939,0.3658,94798.0,94797.0,1.01455489]
[1746069248134,0.3648,94798.0,94797.0,1.01455489]
[1746069248331,0.3688,94798.0,94797.0,1.01455489]
[1746069249641,0.3648,94798.0,94797.0,1.01455489]
[1746069249838,0.3588,94809.0,94797.0,1.01455489]
[1746069249839,0.3588,94809.0,94808.0,0.2109421]
[1746069250040,0.0738,94823.0,94808.0,0.87768839]
[1746069250235,0.2847087,94823.0,94818.0,0.47780749]
[1746069250434,0.2847087,94823.0,94820.0,0.2109154]
[1746069250635,0.0738,94823.0,94821.0,0.154]
[1746069250838,0.0738,94823.0,94822.0,0.2109109]
[1746069251044,0.0738,94823.0,94822.0,0.4809109]
[1746069251247,0.0738,94823.0,94822.0,0.6349109]
[1746069251546,0.0828,94823.0,94822.0,0.6349109]
[1746069251741,0.009,94823.0,94822.0,0.6349109]
[1746069252047,0.2199087,94823.0,94822.0,0.6349109]
[1746069252345,0.2179087,94823.0,94822.0,0.6349109]
[1746069252641,0.2259087,94823.0,94822.0,0.6349109]
[1746069253344,0.2179087,94823.0,94822.0,0.6349109]
[1746069253543,0.2229087,94823.0,94822.0,0.6359109]
[1746069253848,0.009,94823.0,94822.0,0.4829109]
[1746069254433,0.2199087,94823.0,94822.0,0.6363109]
[1746069254950,0.2209087,94823.0,94822.0,0.6363109]
[1746069255342,0.01,94823.0,94822.0,0.6363109]
[1746069255543,0.2209087,94823.0,94822.0,0.6363109]
[1746069256549,0.22072271,94823.0,94822.0,0.6363109]
[1746069256749,0.2219087,94823.0,94822.0,0.6363109]
[1746069256947,0.2908087,94823.0,94822.0,0.6353109]
[1746069257152,0.2968087,94823.0,94822.0,0.6363109]
[1746069257442,0.2908087,94823.0,94822.0,0.6363109]
[1746069257650,0.2978087,94823.0,94822.0,0.6363109]
[1746069258245,0.2988087,94823.0,94822.0,0.6363109]
[1746069258952,0.2918087,94823.0,94822.0,0.6353109]
[1746069259149,0.2958087,94823.0,94822.0,0.6353109]
[1746069259853,0.2938087,94823.0,94822.0,0.6343109]
[1746069261554,0.2938087,94823.0,94822.0,0.4234]
[1746069261750,0.2109376,94811.0,94810.0,0.2109375]
[1746069261951,0.5717376,94811.0,94810.0,0.5338375]
[1746069262142,0.6470376,94811.0,94810.0,0.5338375]
[1746069262342,0.6470376,94811.0,94810.0,0.6071375]
[1746069262944,0.6500376,94811.0,94810.0,0.3962]
[1746069263139,0.7251376,94811.0,94810.0,0.3962]
[1746069263945,0.7251376,94811.0,94810.0,0.40650682]
[1746069264146,0.7221376,94811.0,94810.0,0.40650682]
[1746069264448,0.7251376,94811.0,94810.0,0.40650682]
[1746069265251,0.7251376,94811.0,94810.0,0.3962]
[1746069267355,0.7251376,94811.0,94810.0,0.406696]
[1746069267551,0.7251376,94811.0,94810.0,0.3962]
[1746069268356,0.7251376,94811.0,94810.0,0.25]
[1746069269359,0.83060961,94811.0,94810.0,0.25]
[1746069270053,0.83060961,94811.0,94799.0,0.144]
[1746069270054,0.2109599,94800.0,94799.0,0.144]
[1746069270361,0.2636998,94800.0,94799.0,0.05]
[1746069270863,0.4071998,94800.0,94799.0,0.05]
[1746069271351,0.4081998,94800.0,94799.0,0.05]
[1746069271860,0.2109777,94792.0,94791.0,0.07]
[1746069272055,0.5717777,94792.0,94791.0,0.34]
[1746069272661,0.5717777,94792.0,94791.0,0.27]